[Event "Early-Titled-Tuesday-Blitz-January-23-2024"]
[Site "Chess.com"]
[Date "2024.01.23"]
[Round "2"]
[White "HATilay"]
[Black "KhazhatulyAlikhan"]
[Result "1-0"]
[WhiteElo "2593"]
[BlackElo "2342"]
[TimeControl "180+1"]
[EndTime "8:17:37 PST"]
[Termination "HATilay won by checkmate"]

1. d4 {[%clk 0:02:52]} 1... d5 {[%clk 0:02:59.6]} 2. c4 {[%clk 0:02:50.7]} 2...
e6 {[%clk 0:02:59.9]} 3. Nf3 {[%clk 0:02:50.7]} 3... Nf6 {[%clk 0:03:00.5]} 4.
g3 {[%clk 0:02:51.1]} 4... Be7 {[%clk 0:03:01.1]} 5. Bg2 {[%clk 0:02:51.6]} 5...
dxc4 {[%clk 0:03:01.3]} 6. Nc3 {[%clk 0:02:51.5]} 6... O-O {[%clk 0:03:02]} 7.
Ne5 {[%clk 0:02:51.8]} 7... c5 {[%clk 0:03:01.9]} 8. dxc5 {[%clk 0:02:46.5]}
8... Qxd1+ {[%clk 0:02:59.5]} 9. Nxd1 {[%clk 0:02:47.4]} 9... Bxc5 {[%clk
0:02:59.6]} 10. Be3 {[%clk 0:02:44.4]} 10... Bb4+ {[%clk 0:02:53.1]} 11. Kf1
{[%clk 0:02:44.6]} 11... Nd5 {[%clk 0:02:42.7]} 12. Rc1 {[%clk 0:02:45.2]} 12...
b5 {[%clk 0:02:21.6]} 13. Bd4 {[%clk 0:02:18]} 13... Bb7 {[%clk 0:02:04.4]} 14.
Nc3 {[%clk 0:02:14.8]} 14... Bxc3 {[%clk 0:01:56.6]} 15. bxc3 {[%clk 0:02:13.4]}
15... Nc6 {[%clk 0:01:51.7]} 16. Nxc6 {[%clk 0:02:00.6]} 16... Bxc6 {[%clk
0:01:50.6]} 17. e4 {[%clk 0:01:43.5]} 17... Nb6 {[%clk 0:01:03.4]} 18. Ke2
{[%clk 0:01:41.1]} 18... e5 {[%clk 0:00:45.2]} 19. Bxe5 {[%clk 0:01:32.9]} 19...
Rfe8 {[%clk 0:00:45.1]} 20. f4 {[%clk 0:01:32.9]} 20... f6 {[%clk 0:00:45.1]}
21. Bd4 {[%clk 0:01:33.4]} 21... Bxe4 {[%clk 0:00:45.2]} 22. Bxe4 {[%clk
0:01:34.1]} 22... Rxe4+ {[%clk 0:00:45.6]} 23. Kf3 {[%clk 0:01:34.9]} 23... Re6
{[%clk 0:00:44.5]} 24. f5 {[%clk 0:01:33]} 24... Rd6 {[%clk 0:00:42]} 25. Rhe1
{[%clk 0:01:33.2]} 25... Kf7 {[%clk 0:00:40.1]} 26. Re4 {[%clk 0:01:25.3]} 26...
Re8 {[%clk 0:00:32.9]} 27. Rce1 {[%clk 0:01:22.2]} 27... Rxe4 {[%clk 0:00:27.1]}
28. Rxe4 {[%clk 0:01:23.1]} 28... Rc6 {[%clk 0:00:22.6]} 29. g4 {[%clk 0:01:19]}
29... a6 {[%clk 0:00:22]} 30. h4 {[%clk 0:01:18.2]} 30... h6 {[%clk 0:00:22.6]}
31. g5 {[%clk 0:01:11]} 31... hxg5 {[%clk 0:00:22.1]} 32. hxg5 {[%clk
0:01:11.7]} 32... fxg5 {[%clk 0:00:16.6]} 33. Rg4 {[%clk 0:01:12.3]} 33... g6
{[%clk 0:00:15.3]} 34. f6 {[%clk 0:01:12.7]} 34... Nd5 {[%clk 0:00:15]} 35. Rxg5
{[%clk 0:01:12.9]} 35... Nxf6 {[%clk 0:00:15.6]} 36. a4 {[%clk 0:01:08.1]} 36...
bxa4 {[%clk 0:00:11]} 37. Ra5 {[%clk 0:01:07.6]} 37... Ke6 {[%clk 0:00:08.2]}
38. Rxa4 {[%clk 0:01:07.3]} 38... Nd5 {[%clk 0:00:05.7]} 39. Ra1 {[%clk
0:01:07.5]} 39... Nc7 {[%clk 0:00:05.9]} 40. Re1+ {[%clk 0:01:07.1]} 40... Kf7
{[%clk 0:00:06.6]} 41. Rh1 {[%clk 0:01:06.9]} 41... Nb5 {[%clk 0:00:06.6]} 42.
Rh7+ {[%clk 0:01:04.7]} 42... Ke6 {[%clk 0:00:07.3]} 43. Bh8 {[%clk 0:01:00.5]}
43... Rc7 {[%clk 0:00:04.9]} 44. Rh4 {[%clk 0:00:58.9]} 44... Kd5 {[%clk
0:00:02.5]} 45. Rg4 {[%clk 0:00:57.9]} 45... Rh7 {[%clk 0:00:01.9]} 46. Rg5+
{[%clk 0:00:53.8]} 46... Ke6 {[%clk 0:00:02.2]} 47. Be5 {[%clk 0:00:53.3]} 47...
Rf7+ {[%clk 0:00:01.3]} 48. Ke4 {[%clk 0:00:53.9]} 48... Rf5 {[%clk 0:00:02.2]}
49. Rxg6+ {[%clk 0:00:54.1]} 49... Kf7 {[%clk 0:00:01.6]} 50. Kxf5 {[%clk
0:00:54.6]} 50... a5 {[%clk 0:00:01.9]} 51. Rb6 {[%clk 0:00:54.3]} 51... Na3
{[%clk 0:00:01.6]} 52. Rb7+ {[%clk 0:00:54.7]} 52... Kf8 {[%clk 0:00:01.5]} 53.
Kf6 {[%clk 0:00:54.9]} 53... Ke8 {[%clk 0:00:01.6]} 54. Ke6 {[%clk 0:00:54.9]}
54... Nb5 {[%clk 0:00:02.5]} 55. Rb8# {[%clk 0:00:54.7]} 1-0

[Event "Early-Titled-Tuesday-Blitz-January-23-2024"]
[Site "Chess.com"]
[Date "2024.01.23"]
[Round "2"]
[White "AvitalBor"]
[Black "JeFumeDesClopes"]
[Result "1-0"]
[WhiteElo "2794"]
[BlackElo "2544"]
[TimeControl "180+1"]
[EndTime "8:17:38 PST"]
[Termination "AvitalBor won by resignation"]

1. d4 {[%clk 0:02:59]} 1... g6 {[%clk 0:02:58.7]} 2. c4 {[%clk 0:02:58.7]} 2...
Bg7 {[%clk 0:02:58.8]} 3. Nf3 {[%clk 0:02:55.7]} 3... d6 {[%clk 0:02:58.8]} 4.
e3 {[%clk 0:02:55.8]} 4... Nf6 {[%clk 0:02:56.9]} 5. Be2 {[%clk 0:02:54.7]} 5...
O-O {[%clk 0:02:56]} 6. O-O {[%clk 0:02:54.7]} 6... Bf5 {[%clk 0:02:54.4]} 7. b4
{[%clk 0:02:48.4]} 7... e5 {[%clk 0:02:53.5]} 8. Bb2 {[%clk 0:02:47.7]} 8... Ne4
{[%clk 0:02:47.8]} 9. Nbd2 {[%clk 0:02:33.8]} 9... Nxd2 {[%clk 0:02:42]} 10.
Qxd2 {[%clk 0:02:34.7]} 10... Be4 {[%clk 0:02:12.1]} 11. Rfd1 {[%clk 0:02:29.6]}
11... Nd7 {[%clk 0:01:59.3]} 12. c5 {[%clk 0:02:12.7]} 12... exd4 {[%clk
0:01:44.9]} 13. Bxd4 {[%clk 0:01:56.2]} 13... d5 {[%clk 0:01:31.4]} 14. Bxg7
{[%clk 0:01:49.4]} 14... Kxg7 {[%clk 0:01:31.4]} 15. Qd4+ {[%clk 0:01:49.8]}
15... Qf6 {[%clk 0:01:27.8]} 16. Ng5 {[%clk 0:01:46.3]} 16... Qxd4 {[%clk
0:00:53.5]} 17. Rxd4 {[%clk 0:01:47.2]} 17... Nf6 {[%clk 0:00:53.5]} 18. Nxe4
{[%clk 0:01:44.3]} 18... Nxe4 {[%clk 0:00:43]} 19. Rxd5 {[%clk 0:01:35.8]} 19...
Nc3 {[%clk 0:00:33.3]} 20. Rd2 {[%clk 0:01:35.3]} 20... a5 {[%clk 0:00:30.3]}
21. b5 {[%clk 0:01:25]} 21... Rad8 {[%clk 0:00:27.6]} 22. Rc2 {[%clk 0:01:18]}
22... Nxe2+ {[%clk 0:00:21.3]} 23. Rxe2 {[%clk 0:01:18.9]} 23... Rd3 {[%clk
0:00:19.5]} 24. Rc2 {[%clk 0:01:09.3]} 24... Rfd8 {[%clk 0:00:19.2]} 25. g3
{[%clk 0:01:08.8]} 25... Ra3 {[%clk 0:00:16.6]} 26. Kg2 {[%clk 0:01:05.8]} 26...
h5 {[%clk 0:00:17.1]} 27. h4 {[%clk 0:01:04.9]} 27... Rd5 {[%clk 0:00:17.3]} 28.
Rb1 {[%clk 0:01:00]} 28... Ra4 {[%clk 0:00:16.9]} 29. Rb3 {[%clk 0:00:56.6]}
29... b6 {[%clk 0:00:17]} 30. cxb6 {[%clk 0:00:54.9]} 30... cxb6 {[%clk
0:00:17.9]} 31. a3 {[%clk 0:00:55.4]} 31... Rd1 {[%clk 0:00:12.1]} 32. Rc6
{[%clk 0:00:54.8]} 32... Ra1 {[%clk 0:00:12.3]} 33. Rd3 {[%clk 0:00:48.2]} 33...
R1xa3 {[%clk 0:00:10.5]} 34. Rd7 {[%clk 0:00:48.2]} 34... Rb4 {[%clk 0:00:06.6]}
35. Rxb6 {[%clk 0:00:47.6]} 35... Rab3 {[%clk 0:00:01.6]} 36. Rbb7 {[%clk
0:00:47.8]} 36... Rxb5 {[%clk 0:00:02.5]} 37. Rxf7+ {[%clk 0:00:47.9]} 37... Kg8
{[%clk 0:00:03.4]} 38. Ra7 {[%clk 0:00:42]} 38... Rb6 {[%clk 0:00:03.4]} 39.
Rg7+ {[%clk 0:00:39.6]} 39... Kh8 {[%clk 0:00:03.4]} 40. Rgc7 {[%clk 0:00:34.9]}
40... Rb8 {[%clk 0:00:03.2]} 41. Rh7+ {[%clk 0:00:32.2]} 41... Kg8 {[%clk
0:00:03.2]} 42. Rhg7+ {[%clk 0:00:32.5]} 42... Kh8 {[%clk 0:00:03.1]} 43. Rxg6
{[%clk 0:00:32.4]} 43... Rb2 {[%clk 0:00:03.3]} 44. Rxa5 {[%clk 0:00:29.6]}
44... Kh7 {[%clk 0:00:03.7]} 45. Rgg5 {[%clk 0:00:28.9]} 45... Rf8 {[%clk
0:00:04.3]} 46. Rxh5+ {[%clk 0:00:28.7]} 1-0

[Event "Early-Titled-Tuesday-Blitz-January-23-2024"]
[Site "Chess.com"]
[Date "2024.01.23"]
[Round "2"]
[White "KanalSzachowy"]
[Black "PabloZarnicki"]
[Result "0-1"]
[WhiteElo "2342"]
[BlackElo "2587"]
[TimeControl "180+1"]
[EndTime "8:17:40 PST"]
[Termination "PabloZarnicki won by checkmate"]

1. e4 {[%clk 0:03:00.9]} 1... d6 {[%clk 0:02:59.5]} 2. d4 {[%clk 0:03:00.8]}
2... Nf6 {[%clk 0:02:59.1]} 3. Nc3 {[%clk 0:03:00.7]} 3... c6 {[%clk 0:02:56.6]}
4. f4 {[%clk 0:02:59.7]} 4... Qa5 {[%clk 0:02:56.2]} 5. e5 {[%clk 0:02:57.8]}
5... Ne4 {[%clk 0:02:55.9]} 6. Nf3 {[%clk 0:02:50.1]} 6... Nxc3 {[%clk
0:02:43.1]} 7. bxc3 {[%clk 0:02:51]} 7... Qxc3+ {[%clk 0:02:35.1]} 8. Bd2 {[%clk
0:02:49.8]} 8... Qa3 {[%clk 0:02:35]} 9. Bd3 {[%clk 0:02:48.6]} 9... Bg4 {[%clk
0:02:31.5]} 10. O-O {[%clk 0:02:48]} 10... e6 {[%clk 0:02:27.4]} 11. h3 {[%clk
0:02:41.7]} 11... Bxf3 {[%clk 0:02:19.5]} 12. Qxf3 {[%clk 0:02:42.6]} 12... g6
{[%clk 0:02:18.4]} 13. Rab1 {[%clk 0:02:40.7]} 13... b5 {[%clk 0:02:00.8]} 14.
Rxb5 {[%clk 0:02:26.7]} 14... d5 {[%clk 0:01:49.7]} 15. Rb3 {[%clk 0:02:26.8]}
15... Qa4 {[%clk 0:01:46.4]} 16. f5 {[%clk 0:02:10.8]} 16... gxf5 {[%clk
0:01:40.6]} 17. Bxf5 {[%clk 0:02:03.7]} 17... Qxd4+ {[%clk 0:01:40.1]} 18. Be3
{[%clk 0:01:56.9]} 18... Qxe5 {[%clk 0:01:36.5]} 19. Bxe6 {[%clk 0:01:57.3]}
19... Qxe6 {[%clk 0:01:32.5]} 20. Bd4 {[%clk 0:01:57.2]} 20... Kd8 {[%clk
0:00:32.8]} 21. Bxh8 {[%clk 0:01:56.6]} 21... Bc5+ {[%clk 0:00:32.9]} 22. Kh1
{[%clk 0:01:56]} 22... Nd7 {[%clk 0:00:32.8]} 23. Bc3 {[%clk 0:01:51.1]} 23...
Kc7 {[%clk 0:00:29.5]} 24. Ba5+ {[%clk 0:01:50.8]} 24... Bb6 {[%clk 0:00:28.2]}
25. Bc3 {[%clk 0:01:50]} 25... f6 {[%clk 0:00:22.2]} 26. Qg3+ {[%clk 0:01:47.9]}
26... Kb7 {[%clk 0:00:21.3]} 27. a4 {[%clk 0:01:42.7]} 27... Rg8 {[%clk
0:00:21.9]} 28. Qf3 {[%clk 0:01:37]} 28... Ka8 {[%clk 0:00:22]} 29. Re1 {[%clk
0:01:32]} 29... Qd6 {[%clk 0:00:20.2]} 30. Bb4 {[%clk 0:01:26.8]} 30... c5
{[%clk 0:00:19.1]} 31. Bd2 {[%clk 0:01:09]} 31... Bc7 {[%clk 0:00:18.6]} 32. Bf4
{[%clk 0:01:00.4]} 32... Ne5 {[%clk 0:00:18.5]} 33. Rxe5 {[%clk 0:00:58.3]}
33... fxe5 {[%clk 0:00:18.5]} 34. Bxe5 {[%clk 0:00:58.6]} 34... Qxe5 {[%clk
0:00:17.8]} 35. g3 {[%clk 0:00:54.9]} 35... Qe1+ {[%clk 0:00:14.4]} 36. Kh2
{[%clk 0:00:54.7]} 36... Qxg3+ {[%clk 0:00:14]} 37. Qxg3 {[%clk 0:00:53.6]}
37... Rxg3 {[%clk 0:00:14.6]} 38. Rxg3 {[%clk 0:00:54.3]} 38... Kb7 {[%clk
0:00:12.9]} 39. Kg2 {[%clk 0:00:54]} 39... Bxg3 {[%clk 0:00:13.2]} 40. Kxg3
{[%clk 0:00:54.9]} 40... Kc6 {[%clk 0:00:13.6]} 41. Kf4 {[%clk 0:00:55.8]} 41...
c4 {[%clk 0:00:13.1]} 42. Ke5 {[%clk 0:00:56.1]} 42... Kc5 {[%clk 0:00:13.4]}
43. c3 {[%clk 0:00:55.8]} 43... a5 {[%clk 0:00:13.7]} 44. h4 {[%clk 0:00:51.3]}
44... h5 {[%clk 0:00:13.4]} 45. Kf5 {[%clk 0:00:51.5]} 45... d4 {[%clk 0:00:14]}
46. cxd4+ {[%clk 0:00:47.2]} 46... Kxd4 {[%clk 0:00:14.3]} 47. Kg5 {[%clk
0:00:48.1]} 47... c3 {[%clk 0:00:14.6]} 48. Kxh5 {[%clk 0:00:49]} 48... c2
{[%clk 0:00:15.1]} 49. Kg6 {[%clk 0:00:49.9]} 49... c1=Q {[%clk 0:00:15.7]} 50.
h5 {[%clk 0:00:50.8]} 50... Qg1+ {[%clk 0:00:15]} 51. Kh7 {[%clk 0:00:50.2]}
51... Qg5 {[%clk 0:00:14.6]} 52. h6 {[%clk 0:00:51.1]} 52... Ke5 {[%clk
0:00:14.7]} 53. Kh8 {[%clk 0:00:46.4]} 53... Kf6 {[%clk 0:00:14.6]} 54. h7
{[%clk 0:00:46.3]} 54... Qg7# {[%clk 0:00:14.5]} 0-1

[Event "Early-Titled-Tuesday-Blitz-January-23-2024"]
[Site "Chess.com"]
[Date "2024.01.23"]
[Round "2"]
[White "NowInChess"]
[Black "tandaleo"]
[Result "0-1"]
[WhiteElo "2285"]
[BlackElo "2520"]
[TimeControl "180+1"]
[EndTime "8:17:40 PST"]
[Termination "tandaleo won on time"]

1. e4 {[%clk 0:03:00.9]} 1... e5 {[%clk 0:02:54.9]} 2. Nf3 {[%clk 0:03:00.7]}
2... Nc6 {[%clk 0:02:55.1]} 3. d4 {[%clk 0:03:01.2]} 3... exd4 {[%clk
0:02:55.5]} 4. Bc4 {[%clk 0:03:01.6]} 4... Bc5 {[%clk 0:02:55.1]} 5. c3 {[%clk
0:03:01.1]} 5... Nf6 {[%clk 0:02:55.2]} 6. e5 {[%clk 0:02:59.8]} 6... d5 {[%clk
0:02:55.5]} 7. Bb5 {[%clk 0:02:58.8]} 7... Ne4 {[%clk 0:02:55.8]} 8. cxd4 {[%clk
0:02:58.7]} 8... Bb6 {[%clk 0:02:55.8]} 9. Nc3 {[%clk 0:02:55.6]} 9... O-O
{[%clk 0:02:56.1]} 10. h3 {[%clk 0:02:52.6]} 10... f5 {[%clk 0:02:53.3]} 11.
exf6 {[%clk 0:02:47.5]} 11... Nxf6 {[%clk 0:02:53.2]} 12. Be3 {[%clk 0:02:39.2]}
12... Qd6 {[%clk 0:02:43.1]} 13. Qb3 {[%clk 0:01:59.4]} 13... Ne7 {[%clk
0:02:36.1]} 14. Bd3 {[%clk 0:01:54.3]} 14... Bf5 {[%clk 0:02:32.5]} 15. Qc2
{[%clk 0:01:47.2]} 15... Bxd3 {[%clk 0:02:23.4]} 16. Qxd3 {[%clk 0:01:48.1]}
16... Ng6 {[%clk 0:02:22]} 17. O-O-O {[%clk 0:01:25.1]} 17... Rae8 {[%clk
0:01:57.7]} 18. Ng5 {[%clk 0:01:17.5]} 18... Ba5 {[%clk 0:01:33]} 19. Kb1 {[%clk
0:01:02.6]} 19... Bxc3 {[%clk 0:01:23.6]} 20. Qxc3 {[%clk 0:00:59.4]} 20... h6
{[%clk 0:01:23.5]} 21. Qc2 {[%clk 0:00:43.9]} 21... Nh4 {[%clk 0:00:50.7]} 22.
g3 {[%clk 0:00:38.8]} 22... Ng2 {[%clk 0:00:50.4]} 23. Nf3 {[%clk 0:00:23.6]}
23... Nxe3 {[%clk 0:00:48.3]} 24. fxe3 {[%clk 0:00:23.7]} 24... Rxe3 {[%clk
0:00:47.9]} 25. Ne5 {[%clk 0:00:13.9]} 25... c5 {[%clk 0:00:42.8]} 26. Ng4
{[%clk 0:00:02]} 26... Nxg4 {[%clk 0:00:16.5]} 27. dxc5 {[%clk 0:00:02.9]} 27...
Qe6 {[%clk 0:00:11.8]} 28. hxg4 {[%clk 0:00:02.7]} 28... Rxg3 {[%clk 0:00:12.1]}
29. Qd2 {[%clk 0:00:01.9]} 29... Rxg4 {[%clk 0:00:06.1]} 30. Qxd5 {[%clk
0:00:02]} 30... Qxd5 {[%clk 0:00:06.5]} 31. Rxd5 {[%clk 0:00:02.8]} 31... Rf7
{[%clk 0:00:04.5]} 32. Re1 {[%clk 0:00:02]} 32... Kh7 {[%clk 0:00:03.8]} 33. Re8
{[%clk 0:00:01.8]} 33... h5 {[%clk 0:00:03.6]} 34. Red8 {[%clk 0:00:01.2]} 34...
g6 {[%clk 0:00:03]} 0-1

[Event "Early-Titled-Tuesday-Blitz-January-23-2024"]
[Site "Chess.com"]
[Date "2024.01.23"]
[Round "2"]
[White "azikom"]
[Black "TioCridineno"]
[Result "0-1"]
[WhiteElo "2698"]
[BlackElo "2414"]
[TimeControl "180+1"]
[EndTime "8:17:41 PST"]
[Termination "TioCridineno won on time"]

1. c4 {[%clk 0:02:59.7]} 1... c5 {[%clk 0:02:59.5]} 2. Nc3 {[%clk 0:02:59.5]}
2... Nc6 {[%clk 0:03:00]} 3. g3 {[%clk 0:03:00.4]} 3... g6 {[%clk 0:02:59.8]} 4.
Bg2 {[%clk 0:03:01.3]} 4... Bg7 {[%clk 0:03:00.3]} 5. h4 {[%clk 0:03:01.9]} 5...
h6 {[%clk 0:02:58.2]} 6. Nh3 {[%clk 0:03:01.7]} 6... d6 {[%clk 0:02:58.2]} 7. d3
{[%clk 0:03:01.4]} 7... e5 {[%clk 0:02:58.1]} 8. a3 {[%clk 0:02:59.4]} 8... a5
{[%clk 0:02:57.5]} 9. Bd2 {[%clk 0:02:57.6]} 9... Nge7 {[%clk 0:02:56]} 10. Rb1
{[%clk 0:02:58]} 10... O-O {[%clk 0:02:52.2]} 11. f4 {[%clk 0:02:56.6]} 11...
Be6 {[%clk 0:02:45.4]} 12. Nf2 {[%clk 0:02:52.6]} 12... d5 {[%clk 0:02:43.2]}
13. cxd5 {[%clk 0:02:38.6]} 13... Nxd5 {[%clk 0:02:41.9]} 14. h5 {[%clk
0:02:28.2]} 14... exf4 {[%clk 0:02:38.8]} 15. gxf4 {[%clk 0:02:25.8]} 15... Kh7
{[%clk 0:02:03.9]} 16. e4 {[%clk 0:02:13.2]} 16... Nxc3 {[%clk 0:01:55]} 17.
bxc3 {[%clk 0:02:11.7]} 17... Qd7 {[%clk 0:01:55.2]} 18. Qf3 {[%clk 0:01:56]}
18... Rae8 {[%clk 0:01:43.9]} 19. Kf1 {[%clk 0:01:33.9]} 19... a4 {[%clk
0:01:31.1]} 20. Kg1 {[%clk 0:01:16]} 20... Rd8 {[%clk 0:01:22.1]} 21. Qg3 {[%clk
0:01:04.1]} 21... Rg8 {[%clk 0:01:06.4]} 22. hxg6+ {[%clk 0:00:53.7]} 22... fxg6
{[%clk 0:01:05.1]} 23. Qh4 {[%clk 0:00:49.8]} 23... Qf7 {[%clk 0:00:09.2]} 24.
Be3 {[%clk 0:00:45.7]} 24... Rd7 {[%clk 0:00:03.4]} 25. Bxc5 {[%clk 0:00:42.3]}
25... Bb3 {[%clk 0:00:03.6]} 26. Be3 {[%clk 0:00:37.1]} 26... Bc2 {[%clk
0:00:03.7]} 27. Rb5 {[%clk 0:00:19.3]} 27... Bxd3 {[%clk 0:00:03.9]} 28. Rd5
{[%clk 0:00:17]} 28... Rxd5 {[%clk 0:00:03.3]} 29. exd5 {[%clk 0:00:16.8]} 29...
Qe8 {[%clk 0:00:02.1]} 30. Bd2 {[%clk 0:00:11.8]} 30... Bf5 {[%clk 0:00:03]} 31.
dxc6 {[%clk 0:00:11]} 31... Qe2 {[%clk 0:00:03.9]} 32. cxb7 {[%clk 0:00:03.5]}
32... Qxd2 {[%clk 0:00:03.3]} 0-1

[Event "Early-Titled-Tuesday-Blitz-January-23-2024"]
[Site "Chess.com"]
[Date "2024.01.23"]
[Round "2"]
[White "nihalsarin"]
[Black "TheNextLevelFan"]
[Result "1-0"]
[WhiteElo "3184"]
[BlackElo "2552"]
[TimeControl "180+1"]
[EndTime "8:17:42 PST"]
[Termination "nihalsarin won by resignation"]

1. h3 {[%clk 0:03:00.9]} 1... e5 {[%clk 0:02:59.3]} 2. c3 {[%clk 0:03:01.8]}
2... Nf6 {[%clk 0:02:59.1]} 3. d4 {[%clk 0:03:02.7]} 3... e4 {[%clk 0:02:57]} 4.
Bf4 {[%clk 0:02:57.1]} 4... d5 {[%clk 0:02:55.6]} 5. e3 {[%clk 0:02:42.4]} 5...
Bd6 {[%clk 0:02:52.2]} 6. Bxd6 {[%clk 0:02:29.3]} 6... Qxd6 {[%clk 0:02:51.8]}
7. c4 {[%clk 0:02:29.2]} 7... dxc4 {[%clk 0:02:47.1]} 8. Nc3 {[%clk 0:02:26.5]}
8... O-O {[%clk 0:02:45.2]} 9. Bxc4 {[%clk 0:02:25.4]} 9... c6 {[%clk
0:02:38.2]} 10. Nge2 {[%clk 0:02:16.5]} 10... Bf5 {[%clk 0:02:37.4]} 11. Ng3
{[%clk 0:02:12.3]} 11... Bg6 {[%clk 0:02:37.4]} 12. h4 {[%clk 0:02:10.8]} 12...
h6 {[%clk 0:02:32.6]} 13. h5 {[%clk 0:02:10.6]} 13... Bh7 {[%clk 0:02:33]} 14.
Qb3 {[%clk 0:02:11]} 14... Qc7 {[%clk 0:02:25.1]} 15. Rh4 {[%clk 0:02:03.9]}
15... b5 {[%clk 0:02:18.3]} 16. Be2 {[%clk 0:02:02.9]} 16... Re8 {[%clk
0:02:16.2]} 17. Rc1 {[%clk 0:02:03.4]} 17... Qd6 {[%clk 0:02:08.6]} 18. Rf4
{[%clk 0:01:55.2]} 18... Nbd7 {[%clk 0:02:06.7]} 19. Nf5 {[%clk 0:01:55.3]}
19... Bxf5 {[%clk 0:01:57.8]} 20. Rxf5 {[%clk 0:01:56.2]} 20... a6 {[%clk
0:01:56.4]} 21. g3 {[%clk 0:01:54.1]} 21... Rac8 {[%clk 0:01:54.9]} 22. a4
{[%clk 0:01:45.8]} 22... c5 {[%clk 0:01:48.3]} 23. axb5 {[%clk 0:01:29.6]} 23...
cxd4 {[%clk 0:01:48.1]} 24. exd4 {[%clk 0:01:30.5]} 24... e3 {[%clk 0:01:35]}
25. f4 {[%clk 0:01:19.5]} 25... axb5 {[%clk 0:01:27.9]} 26. Rd1 {[%clk
0:01:16.3]} 26... b4 {[%clk 0:01:25.1]} 27. Nb5 {[%clk 0:01:05.1]} 27... Qb6
{[%clk 0:01:17.7]} 28. Kf1 {[%clk 0:00:45.2]} 28... Nb8 {[%clk 0:01:00.9]} 29.
Re5 {[%clk 0:00:39.4]} 29... Nc6 {[%clk 0:00:58.9]} 30. Nd6 {[%clk 0:00:39.2]}
30... Nxe5 {[%clk 0:00:54.8]} 31. dxe5 {[%clk 0:00:37.1]} 31... Qc6 {[%clk
0:00:32.1]} 32. Kg1 {[%clk 0:00:34.5]} 32... Rf8 {[%clk 0:00:18.8]} 33. exf6
{[%clk 0:00:33]} 33... Rcd8 {[%clk 0:00:18.6]} 34. Qxb4 {[%clk 0:00:26.9]} 34...
gxf6 {[%clk 0:00:16.7]} 35. Qd4 {[%clk 0:00:16.4]} 35... Rd7 {[%clk 0:00:08.6]}
36. Bb5 {[%clk 0:00:06.1]} 36... Rfd8 {[%clk 0:00:09.1]} 37. Bxc6 {[%clk
0:00:06.1]} 1-0

[Event "Early-Titled-Tuesday-Blitz-January-23-2024"]
[Site "Chess.com"]
[Date "2024.01.23"]
[Round "2"]
[White "CaspiIsrael"]
[Black "DarZay"]
[Result "1-0"]
[WhiteElo "2685"]
[BlackElo "2271"]
[TimeControl "180+1"]
[EndTime "8:17:44 PST"]
[Termination "CaspiIsrael won on time"]

1. e4 {[%clk 0:03:00.9]} 1... c5 {[%clk 0:02:57.9]} 2. Nf3 {[%clk 0:02:54.7]}
2... Nc6 {[%clk 0:02:57.4]} 3. Bb5 {[%clk 0:02:54.4]} 3... g6 {[%clk 0:02:56.5]}
4. Bxc6 {[%clk 0:02:53.2]} 4... dxc6 {[%clk 0:02:55.7]} 5. d3 {[%clk 0:02:53.6]}
5... Bg7 {[%clk 0:02:55.5]} 6. O-O {[%clk 0:02:53.4]} 6... Nf6 {[%clk
0:02:54.5]} 7. a4 {[%clk 0:02:50.9]} 7... O-O {[%clk 0:02:52.7]} 8. h3 {[%clk
0:02:51.2]} 8... Nd7 {[%clk 0:02:52.4]} 9. a5 {[%clk 0:02:51.3]} 9... e5 {[%clk
0:02:49.8]} 10. Na3 {[%clk 0:02:51.5]} 10... Re8 {[%clk 0:02:48.9]} 11. Nc4
{[%clk 0:02:51.6]} 11... Nf8 {[%clk 0:02:48.9]} 12. b3 {[%clk 0:02:49.1]} 12...
Rb8 {[%clk 0:02:46.6]} 13. Bb2 {[%clk 0:02:49.1]} 13... Qc7 {[%clk 0:02:46.6]}
14. Ra2 {[%clk 0:02:47]} 14... b5 {[%clk 0:02:46.4]} 15. axb6 {[%clk 0:02:47.1]}
15... axb6 {[%clk 0:02:46.6]} 16. Qa1 {[%clk 0:02:47.8]} 16... f6 {[%clk
0:02:46.1]} 17. Nfd2 {[%clk 0:02:45.3]} 17... b5 {[%clk 0:02:44.3]} 18. Ne3
{[%clk 0:02:43.6]} 18... Ne6 {[%clk 0:02:43.1]} 19. Ra7 {[%clk 0:02:36.2]} 19...
Bb7 {[%clk 0:02:42.5]} 20. Bc3 {[%clk 0:02:28.2]} 20... Ra8 {[%clk 0:02:41.3]}
21. Rxa8 {[%clk 0:02:27.5]} 21... Rxa8 {[%clk 0:02:40.9]} 22. Qb1 {[%clk
0:02:26.9]} 22... Nd4 {[%clk 0:02:38.6]} 23. Re1 {[%clk 0:02:26.4]} 23... Rf8
{[%clk 0:02:27.2]} 24. Qd1 {[%clk 0:02:14.8]} 24... Bc8 {[%clk 0:02:26.4]} 25.
Bb2 {[%clk 0:02:12.3]} 25... Qf7 {[%clk 0:02:24.2]} 26. Ng4 {[%clk 0:02:05.5]}
26... h5 {[%clk 0:02:05]} 27. Ne3 {[%clk 0:02:05.2]} 27... f5 {[%clk 0:02:05.1]}
28. exf5 {[%clk 0:02:05.4]} 28... gxf5 {[%clk 0:02:05.3]} 29. c3 {[%clk
0:02:04.6]} 29... f4 {[%clk 0:01:59.4]} 30. Nef1 {[%clk 0:02:02]} 30... f3
{[%clk 0:01:47.7]} 31. gxf3 {[%clk 0:01:41.9]} 31... Qg6+ {[%clk 0:01:26.7]} 32.
Ng3 {[%clk 0:01:36.5]} 32... h4 {[%clk 0:01:25.3]} 33. cxd4 {[%clk 0:01:31.8]}
33... hxg3 {[%clk 0:01:25.1]} 34. dxe5 {[%clk 0:01:31.5]} 34... Bxh3 {[%clk
0:01:22]} 35. Re4 {[%clk 0:00:58.8]} 35... gxf2+ {[%clk 0:01:15.2]} 36. Kxf2
{[%clk 0:00:59.7]} 36... Qg2+ {[%clk 0:01:13.1]} 37. Ke1 {[%clk 0:00:59.8]}
37... Bh6 {[%clk 0:00:43.2]} 38. Qe2 {[%clk 0:00:58.9]} 38... Qg1+ {[%clk
0:00:20.3]} 39. Nf1 {[%clk 0:00:56.9]} 39... Bf4 {[%clk 0:00:09.4]} 40. Qf2
{[%clk 0:00:48]} 40... Bg3 {[%clk 0:00:08.1]} 41. Qxg3+ {[%clk 0:00:48]} 41...
Qxg3+ {[%clk 0:00:07.9]} 42. Nxg3 {[%clk 0:00:48.9]} 42... Rxf3 {[%clk
0:00:07.9]} 43. Ne2 {[%clk 0:00:43.1]} 43... Rxd3 {[%clk 0:00:06.5]} 44. e6
{[%clk 0:00:38.3]} 44... Bxe6 {[%clk 0:00:03.9]} 45. Rxe6 {[%clk 0:00:36.6]}
45... Rxb3 {[%clk 0:00:04.1]} 46. Be5 {[%clk 0:00:36.2]} 46... Re3 {[%clk
0:00:01.3]} 47. Kd2 {[%clk 0:00:33.1]} 1-0